bitfinex-derivatives/quotes_BNBF0:USTF0_20230830
["timestamp","ask_amount","ask_price","bid_price","bid_amount"]
[1693416084287,0.07344927,222.78,222.46,0.82169208]
[1693416084488,0.07344927,222.78,222.47,0.82169208]
[1693416084689,0.07344927,222.78,222.48,0.82169208]
[1693416084889,0.07344927,222.79,222.49,0.82169208]
[1693416085091,0.07344927,222.79,222.44,0.82169208]
[1693416085289,0.07344927,222.79,222.45,0.82169208]
[1693416085489,0.07344927,222.79,222.46,0.82169208]
[1693416085689,0.07344927,222.79,222.44,0.82169208]
[1693416085889,0.07344927,222.79,222.45,0.82169208]
[1693416086089,0.07344927,222.79,222.46,0.82169208]
[1693416086390,0.07344927,222.79,222.47,0.82169208]
[1693416086589,0.07344927,222.79,222.48,0.82169208]
[1693416086784,0.07344927,222.79,222.43,0.82169208]
[1693416086989,0.07344927,222.79,222.44,0.82169208]
[1693416087189,0.07344927,222.79,222.43,0.82169208]
[1693416087489,0.07344927,222.79,222.44,0.82169208]
[1693416087689,0.07344927,222.79,222.43,0.82169208]
[1693416087991,0.07344927,222.79,222.44,0.82169208]
[1693416088190,0.07344927,222.79,222.45,0.82169208]
[1693416088386,0.07344927,222.79,222.46,0.82169208]
[1693416088584,0.07344927,222.79,222.47,0.82169208]
[1693416088785,0.07344927,222.79,222.43,0.82169208]
[1693416088990,0.07344927,222.79,222.44,0.82169208]
[1693416089191,0.07344927,222.79,222.45,0.82169208]
[1693416089386,0.07344927,222.79,222.43,0.82169208]
[1693416089586,0.07344927,222.79,222.44,0.82169208]
[1693416089791,0.07344927,222.79,222.43,0.82169208]
[1693416089991,0.07344927,222.79,222.44,0.82169208]
[1693416090193,0.07344927,222.79,222.42,0.07312086]
[1693416090194,0.07344927,222.79,222.43,0.82169208]
[1693416090392,0.07344927,222.79,222.44,0.82169208]
[1693416090593,0.07344927,222.79,222.43,0.82169208]
[1693416090795,0.07344927,222.79,222.44,0.82169208]
[1693416090991,0.07344927,222.79,222.43,0.82169208]
[1693416091191,0.07344927,222.79,222.44,0.82169208]
[1693416091392,0.07344927,222.79,222.45,0.82169208]
[1693416091588,0.07344927,222.79,222.46,0.82169208]
[1693416091794,0.07344927,222.79,222.47,0.82169208]
[1693416091990,0.07344927,222.79,222.43,0.82169208]
[1693416094091,0.07344927,222.78,222.43,0.82169208]
[1693416094598,0.07344927,222.79,222.43,0.82169208]
[1693416094998,0.07344927,222.78,222.43,0.89481294]
[1693416095195,0.07344927,222.78,222.44,0.82169208]
[1693416095393,0.07344927,222.78,222.45,0.82169208]
[1693416095595,0.07344927,222.78,222.46,0.82169208]
[1693416095799,0.07344927,222.78,222.43,0.89481294]
[1693416095994,0.07344927,222.78,222.44,0.82169208]
[1693416098897,0.07344927,222.77,222.44,0.82169208]
[1693416100003,0.07344927,222.77,222.44,0.89481294]
[1693416100303,0.07344927,222.77,222.45,0.82169208]
[1693416101202,0.07344927,222.76,222.44,0.82169208]
[1693416101403,0.07344927,222.75,222.45,0.82169208]
[1693416101601,0.07344927,222.75,222.46,0.82169208]
[1693416101804,0.07344927,222.75,222.43,0.82169208]
[1693416101998,0.07344927,222.75,222.44,0.82169208]
[1693416102201,0.07344927,222.75,222.43,0.82169208]
[1693416102401,0.07344927,222.75,222.44,0.82169208]
[1693416102601,0.07344927,222.75,222.45,0.82169208]
[1693416102803,0.07344927,222.75,222.46,0.82169208]
[1693416102998,0.07344927,222.75,222.47,0.82169208]
[1693416103200,0.07344927,222.75,222.43,0.82169208]
[1693416103401,0.07344927,222.75,222.44,0.82169208]
[1693416103601,0.07344927,222.75,222.45,0.82169208]
[1693416103801,0.07344927,222.75,222.46,0.82169208]
[1693416104002,0.07344927,222.75,222.47,0.82169208]
[1693416104206,0.07344927,222.75,222.43,0.82169208]
[1693416104399,0.07344927,222.75,222.44,0.82169208]
[1693416104601,0.07344927,222.75,222.45,0.82169208]
[1693416104804,0.07344927,222.75,222.43,0.82169208]
[1693416105505,0.07344927,222.74,222.43,0.82169208]
[1693416105707,0.07344927,222.74,222.42,0.82169208]
[1693416105907,0.07344927,222.74,222.43,0.82169208]
[1693416106107,0.07344927,222.74,222.42,0.82169208]
[1693416106307,0.07344927,222.74,222.43,0.82169208]
[1693416106502,0.07344927,222.74,222.44,0.82169208]
[1693416106708,0.07344927,222.74,222.42,0.82169208]
[1693416106907,0.07344927,222.7,222.43,0.82231102]
[1693416107103,0.07344927,222.7,222.36,0.07312086]
[1693416107406,0.07344927,222.7,222.37,0.82228119]
[1693416108105,0.07344927,222.7,222.35,0.07312086]
[1693416108106,0.07344927,222.7,222.38,0.82228119]
[1693416108307,0.07344927,222.7,222.36,0.82228119]
[1693416108506,0.07344927,222.7,222.37,0.82228119]
[1693416108709,0.07344927,222.7,222.38,0.82228119]
[1693416108907,0.07344927,222.71,222.39,0.82228119]
[1693416109104,0.07344927,222.71,222.4,0.82228119]
[1693416109310,0.07344927,222.71,222.41,0.82228119]
[1693416109511,0.07344927,222.71,222.36,0.82228119]
[1693416109810,0.07344927,222.71,222.37,0.82228119]
[1693416110005,0.07344927,222.71,222.38,0.82228119]
[1693416110208,0.07344927,222.71,222.39,0.82228119]
[1693416110407,0.07344927,222.71,222.4,0.82228119]
[1693416110611,0.07344927,222.71,222.36,0.82228119]
[1693416110912,0.07344927,222.71,222.37,0.82228119]
[1693416111110,0.07344927,222.71,222.38,0.82228119]
[1693416111311,0.07344927,222.71,222.36,0.82228119]
[1693416111510,0.07344927,222.71,222.37,0.82228119]
[1693416111711,0.07344927,222.71,222.36,0.82228119]
[1693416111908,0.07344927,222.71,222.37,0.82228119]
[1693416112107,0.07344927,222.71,222.36,0.82228119]
[1693416112306,0.07344927,222.71,222.37,0.82228119]
[1693416112510,0.07344927,222.71,222.38,0.82228119]
[1693416112707,0.07344927,222.71,222.39,0.82228119]
[1693416113012,0.07344927,222.71,222.4,0.82228119]
[1693416113212,0.07344927,222.71,222.41,0.82228119]
[1693416113413,0.07344927,222.71,222.42,0.82228119]
[1693416113608,0.07344927,222.71,222.43,0.82228119]
[1693416113812,0.07344927,222.71,222.35,0.07312086]
[1693416114015,0.07344927,222.71,222.36,0.82228754]
[1693416115011,0.07344927,222.72,222.37,0.82228754]
[1693416115208,0.07344927,222.72,222.38,0.82228754]
[1693416115410,0.07344927,222.72,222.39,0.82228754]
[1693416115611,0.07344927,222.72,222.35,0.82228754]
[1693416115813,0.07344927,222.72,222.36,0.82228754]
[1693416116013,0.07344927,222.72,222.37,0.82228754]
[1693416116210,0.07344927,222.72,222.35,0.82228754]
[1693416116415,0.07344927,222.72,222.36,0.82228754]
[1693416116715,0.07344927,222.71,222.37,0.82228754]
[1693416116916,0.07344927,222.72,222.38,0.82228754]
[1693416117116,0.07344927,222.72,222.35,0.82228754]
[1693416117415,0.07344927,222.72,222.36,0.82228754]
[1693416117618,0.07344927,222.72,222.37,0.82228754]
[1693416117915,0.07344927,222.72,222.38,0.82228754]
[1693416118115,0.07344927,222.72,222.39,0.82228754]
[1693416118315,0.07344927,222.72,222.4,0.82228754]
[1693416118516,0.07344927,222.72,222.34,0.82228754]
[1693416118815,0.07344927,222.72,222.35,0.82228754]
[1693416119015,0.07344927,222.72,222.36,0.82228754]
[1693416119215,0.07344927,222.72,222.34,0.82228754]
[1693416119416,0.07344927,222.72,222.35,0.82228754]
[1693416119609,0.07344927,222.72,222.36,0.82228754]
[1693416119813,0.07344927,222.72,222.34,0.82228754]
[1693416120016,0.07344927,222.72,222.35,0.82228754]
[1693416120315,0.07344927,222.72,222.36,0.82228754]
[1693416120616,0.07344927,222.73,222.37,0.82228754]
[1693416120815,0.07344927,222.73,222.38,0.82228754]
[1693416121014,0.07344927,222.73,222.35,0.82228754]
[1693416121210,0.07344927,222.73,222.36,0.82228754]
[1693416121416,0.07344927,222.73,222.37,0.82228754]
[1693416121610,0.07344927,222.73,222.35,0.82228754]
[1693416121814,0.07344927,222.73,222.36,0.82228754]
[1693416122014,0.07344927,222.73,222.37,0.82228754]
[1693416122215,0.07344927,222.73,222.35,0.82228754]
[1693416122411,0.07344927,222.73,222.36,0.82228754]
[1693416122611,0.07344927,222.73,222.37,0.82228754]
[1693416122824,0.07344927,222.73,222.38,0.82228754]
[1693416123016,0.07344927,222.73,222.39,0.82228754]
[1693416123217,0.07344927,222.73,222.4,0.82228754]
[1693416123414,0.07344927,222.73,222.35,0.82228754]
[1693416123613,0.07344927,222.73,222.36,0.82228754]
[1693416123815,0.07344927,222.73,222.37,0.82228754]
[1693416124012,0.07344927,222.73,222.35,0.82228754]
[1693416124215,0.07344927,222.73,222.36,0.82228754]
[1693416124415,0.07344927,222.73,222.35,0.82228754]
[1693416124611,0.07344927,222.73,222.36,0.82228754]
[1693416124815,0.07344927,222.73,222.35,0.82228754]
[1693416125018,0.07344927,222.73,222.36,0.82228754]
[1693416125215,0.07344927,222.73,222.37,0.82228754]
[1693416125418,0.07344927,222.73,222.35,0.82228754]
[1693416125617,0.07344927,222.73,222.36,0.82228754]
[1693416125812,0.07344927,222.73,222.37,0.82228754]
[1693416126016,0.07344927,222.73,222.38,0.82228754]
[1693416126216,0.07344927,222.73,222.39,0.82228754]
[1693416126518,0.07344927,222.73,222.4,0.82228754]
[1693416126718,0.07344927,222.73,222.35,0.8954084]
[1693416126913,0.07344927,222.72,222.36,0.82228754]
[1693416127619,0.14689854,222.75,222.36,0.82228754]
[1693416127620,0.07344927,222.73,222.36,0.82228754]
[1693416127816,0.07344927,222.72,222.36,0.82228754]
[1693416129820,0.07344927,222.72,222.36,0.8954084]
[1693416130021,0.07344927,222.72,222.37,0.82228754]
[1693416130924,0.07344927,222.71,222.37,0.82228754]
[1693416132822,0.07344927,222.71,222.37,0.8954084]
[1693416133123,0.07344927,222.71,222.38,0.82228754]
[1693416133718,0.07344927,222.7,222.38,0.82228754]
[1693416135023,0.07344927,222.69,222.38,0.8954084]
[1693416135224,0.07344927,222.69,222.39,0.82228754]
[1693416135920,0.07344927,222.69,222.39,0.8954084]
[1693416136223,0.07344927,222.69,222.4,0.82228754]
[1693416136825,0.14689854,222.71,222.4,0.82228754]
[1693416136826,0.07344927,222.68,222.4,0.82228754]
[1693416137825,0.07344927,222.68,222.4,0.8954084]
[1693416138020,0.07344927,222.68,222.41,0.82228754]
[1693416138923,0.07344927,222.67,222.41,0.8954084]
[1693416139127,0.07344927,222.67,222.42,0.82228754]
[1693416139925,0.07344927,222.66,222.42,0.8954084]
[1693416140230,0.07344927,222.66,222.43,0.82228754]
[1693416141030,0.07344927,222.65,222.43,0.8954084]
[1693416141232,0.07344927,222.65,222.44,0.82228754]
[1693416142026,0.07344927,222.65,222.36,0.14624173]
[1693416142027,0.07344927,222.68,222.46,0.07312086]
[1693416142226,0.07344927,222.69,222.47,0.89441414]
[1693416142433,0.07344927,222.69,222.48,0.82129328]
[1693416142932,0.07344927,222.7,222.48,0.82129328]
[1693416143136,0.07344927,222.7,222.49,0.82129328]
[1693416143334,0.07344927,222.7,222.47,0.82129328]
[1693416143533,0.07344927,222.7,222.48,0.82118449]
[1693416143736,0.07344927,222.71,222.47,0.82118449]
[1693416143933,0.07344927,222.71,222.48,0.82118449]
[1693416144131,0.07344927,222.71,222.46,0.82118449]
[1693416144333,0.07344927,222.71,222.47,0.82118449]
[1693416144528,0.07344927,222.71,222.46,0.82118449]
[1693416144730,0.07344927,222.72,222.47,0.82118449]
[1693416144931,0.07344927,222.72,222.48,0.82118449]
[1693416145133,0.07344927,222.72,222.49,0.82118449]
[1693416145328,0.07344927,222.72,222.45,0.82118449]
[1693416145532,0.07344927,222.72,222.46,0.82118768]
[1693416145729,0.07344927,222.72,222.45,0.82118768]
[1693416145934,0.07344927,222.72,222.46,0.82118768]
[1693416146233,0.07344927,222.72,222.47,0.82118768]
[1693416146434,0.07344927,222.72,222.48,0.82118768]
[1693416146734,0.07344927,222.72,222.49,0.82118768]
[1693416146937,0.07344927,222.73,222.45,0.82118768]
[1693416147131,0.07344927,222.73,222.46,0.82116291]
[1693416147331,0.07344927,222.73,222.45,0.82116291]
[1693416147529,0.07344927,222.73,222.46,0.82116291]
[1693416147835,0.07344927,222.73,222.47,0.82116291]
[1693416148034,0.07344927,222.73,222.48,0.82116291]
[1693416148227,0.07344927,222.73,222.49,0.82116291]
[1693416148428,0.07344927,222.73,222.43,0.07312086]
[1693416148735,0.07344927,222.73,222.44,0.82112521]
[1693416149835,0.07344927,222.74,222.44,0.82112521]
[1693416153835,0.07344927,222.74,222.43,0.89424607]
[1693416154032,0.07344927,222.74,222.44,0.82112521]
[1693416154835,0.07344927,222.74,222.43,0.82112521]
[1693416155038,0.07344927,222.74,222.44,0.82112521]
[1693416155236,0.07344927,222.74,222.43,0.82112521]
[1693416155433,0.07344927,222.74,222.44,0.82112521]
[1693416155638,0.07344927,222.74,222.43,0.82112521]
[1693416155937,0.07344927,222.74,222.44,0.82112521]
[1693416156138,0.07344927,222.74,222.43,0.82112521]
[1693416156339,0.07344927,222.74,222.44,0.82112521]
[1693416156538,0.07344927,222.74,222.43,0.82112521]
[1693416156737,0.07344927,222.74,222.44,0.82112521]
[1693416156932,0.07344927,222.74,222.43,0.82112521]
[1693416157133,0.07344927,222.74,222.44,0.82112521]
[1693416157333,0.07344927,222.74,222.43,0.82112521]
[1693416157535,0.07344927,222.74,222.44,0.82112521]
[1693416157736,0.07344927,222.74,222.43,0.82112521]
[1693416157939,0.07344927,222.74,222.44,0.82112521]
[1693416158234,0.07344927,222.74,222.45,0.82112521]
[1693416158439,0.07344927,222.74,222.43,0.82112521]
[1693416164746,0.07344927,222.74,222.43,0.89424607]
[1693416164947,0.07344927,222.74,222.44,0.82112521]
[1693416167850,0.07344927,222.73,222.44,0.82112521]
[1693416169652,0.07344927,222.73,222.44,0.89424607]
[1693416169850,0.07344927,222.73,222.45,0.82112521]
[1693416171653,0.07344927,222.72,222.45,0.82112521]
[1693416173656,0.07344927,222.72,222.45,0.89424607]
[1693416173857,0.07344927,222.72,222.46,0.82112521]
[1693416174856,0.07344927,222.71,222.46,0.82112521]
[1693416175460,0.07344927,222.71,222.46,0.89424607]
[1693416175661,0.07344927,222.7,222.47,0.82112521]
[1693416176655,0.07344927,222.69,222.48,0.07312086]
[1693416176859,0.07344927,222.69,222.49,0.82112521]
[1693416177259,0.07344927,222.68,222.47,0.07312086]
[1693416177560,0.07344927,222.68,222.48,0.81966639]
[1693416177958,0.07344927,222.67,222.46,0.07312086]
[1693416178160,0.07344927,222.67,222.47,0.81973855]
[1693416178559,0.07344927,222.68,222.47,0.89285941]
[1693416178757,0.07344927,222.68,222.48,0.81973855]
[1693416180464,0.07344927,222.69,222.48,0.89285941]
[1693416180665,0.07344927,222.69,222.49,0.81973855]
[1693416194977,0.07344927,222.69,222.47,0.07312086]
[1693416195180,0.07344927,222.69,222.48,0.82020411]
[1693416197678,0.07344927,222.69,222.48,0.89332497]
[1693416197874,0.07344927,222.69,222.49,0.82020411]
[1693416198073,0.07344927,222.69,222.47,0.07312086]
[1693416198275,0.07344927,222.69,222.48,0.82021447]
[1693416207584,0.07344927,222.69,222.48,0.89333533]
[1693416207784,0.07344927,222.69,222.49,0.82021447]
[1693416207983,0.07344927,222.69,222.47,0.07312086]
[1693416208283,0.07344927,222.69,222.48,0.82064812]
[1693416209486,0.07344927,222.69,222.48,0.89376898]
[1693416209681,0.07344927,222.69,222.49,0.82064812]
[1693416210082,0.07344927,222.69,222.48,0.89376898]
[1693416210287,0.07344927,222.69,222.49,0.82065798]
[1693416229605,0.07344927,222.68,222.49,0.82065798]
[1693416229802,0.07344927,222.69,222.49,0.82065798]
[1693416230806,0.07344927,222.68,222.49,0.82065798]
[1693416233002,0.07344927,222.69,222.49,0.82065798]
[1693416233206,0.07344927,222.68,222.49,0.82065798]
[1693416235012,0.07344927,222.68,222.48,0.07312086]
[1693416235603,0.07344927,222.68,222.47,0.07312086]
[1693416235807,0.07344927,222.68,222.48,0.82073062]
[1693416240111,0.14689854,222.71,222.48,0.82073062]
[1693416240112,0.07344927,222.69,222.48,0.82073062]
[1693416242613,0.07344927,222.69,222.48,0.89385148]
[1693416242812,0.07344927,222.69,222.49,0.82073062]
[1693416243314,0.07344927,222.69,222.47,0.07312086]
[1693416243514,0.07344927,222.69,222.48,0.82076712]
[1693416243813,0.07344927,222.69,222.48,0.89388798]
[1693416244007,0.07344927,222.69,222.49,0.82076712]
[1693416245211,0.07344927,222.7,222.49,0.82076712]
[1693416245818,0.07344927,222.69,222.49,0.82076712]
[1693416248616,0.07344927,222.7,222.49,0.82076712]
[1693416255120,0.07344927,222.69,222.49,0.82076712]
[1693416255521,0.07344927,222.69,222.48,0.82076712]
[1693416255716,0.07344927,222.69,222.49,0.82140154]
[1693416256022,0.07344927,222.69,222.47,0.07312086]
[1693416256320,0.07344927,222.69,222.48,0.82140302]
[1693416256822,0.07344927,222.68,222.48,0.82140302]
[1693416257022,0.07344927,222.68,222.47,0.82140302]
[1693416257215,0.07344927,222.69,222.48,0.82153573]
[1693416257821,0.07344927,222.68,222.47,0.82153573]
[1693416258817,0.07344927,222.69,222.47,0.82153573]
[1693416263626,0.07344927,222.68,222.47,0.82153573]
[1693416264121,0.07344927,222.68,222.45,0.07312086]
[1693416264328,0.07344927,222.68,222.46,0.82223374]
[1693416267928,0.07344927,222.68,222.47,0.82223374]
[1693416268129,0.07344927,222.68,222.45,0.82223374]
[1693416268329,0.07344927,222.68,222.44,0.07312086]
[1693416268330,0.07344927,222.68,222.46,0.82221989]
[1693416268629,0.07344927,222.68,222.47,0.82221989]
[1693416268829,0.07344927,222.68,222.44,0.07312086]
[1693416269030,0.07344927,222.68,222.45,0.82221884]
[1693416269529,0.07344927,222.69,222.45,0.82221884]
[1693416280239,0.07344927,222.7,222.45,0.82221884]
[1693416282440,0.07344927,222.69,222.45,0.82221884]
[1693416283441,0.07344927,222.7,222.45,0.82221884]
[1693416283635,0.07344927,222.69,222.45,0.82221884]
[1693416284739,0.07344927,222.69,222.45,0.8953397]
[1693416285044,0.07344927,222.7,222.46,0.82221884]
[1693416285640,0.07344927,222.69,222.46,0.82221884]
[1693416287643,0.07344927,222.69,222.46,0.8953397]
[1693416287843,0.07344927,222.69,222.47,0.82221884]
[1693416296745,0.07344927,222.68,222.47,0.82221884]
[1693416311465,0.07344927,222.67,222.47,0.82221884]
[1693416312364,0.07344927,222.68,222.47,0.82221884]
[1693416312565,0.07344927,222.67,222.47,0.82221884]
[1693416316268,0.07344927,222.68,222.47,0.82221884]
[1693416316468,0.07344927,222.67,222.47,0.82221884]
[1693416320073,0.07344927,222.68,222.47,0.8953397]
[1693416320270,0.07344927,222.68,222.48,0.82221884]
[1693416322267,0.07344927,222.68,222.46,0.07312086]
[1693416322470,0.07344927,222.68,222.47,0.82150891]
[1693416322669,0.07344927,222.67,222.47,0.82150891]
[1693416325275,0.07344927,222.68,222.47,0.82150891]
[1693416326077,0.07344927,222.67,222.47,0.82150891]
[1693416327176,0.14689854,222.69,222.47,0.82150891]
[1693416327177,0.07344927,222.68,222.47,0.89462977]
[1693416327377,0.07344927,222.68,222.48,0.82150891]
[1693416327575,0.07344927,222.67,222.47,0.82150891]
[1693416327778,0.07344927,222.68,222.48,0.82138499]
[1693416328976,0.07344927,222.69,222.48,0.82138499]
[1693416329577,0.07344927,222.69,222.48,0.89450585]
[1693416329773,0.07344927,222.69,222.49,0.82138499]
[1693416329978,0.07344927,222.69,222.47,0.07312086]
[1693416330180,0.07344927,222.69,222.48,0.82134964]
[1693416335083,0.07344927,222.69,222.47,0.07312086]
[1693416335284,0.07344927,222.69,222.48,0.82140212]
[1693416338687,0.07344927,222.7,222.48,0.82140212]
[1693416344089,0.07344927,222.69,222.48,0.82140212]
[1693416344289,0.07344927,222.69,222.46,0.07312086]
[1693416344486,0.07344927,222.69,222.47,0.82166809]
[1693416350691,0.07344927,222.69,222.47,0.89478895]
[1693416350894,0.07344927,222.69,222.48,0.82166809]
[1693416361708,0.07344927,222.68,222.48,0.82166809]
[1693416362809,0.07344927,222.68,222.48,0.89478895]
[1693416363009,0.07344927,222.68,222.49,0.82166809]
[1693416372614,0.07344927,222.7,222.5,0.07312086]
[1693416372818,0.07344927,222.71,222.51,0.82166809]
[1693416373021,0.07344927,222.72,222.51,0.82166809]
[1693416374319,0.07344927,222.72,222.52,0.82166809]
[1693416374520,0.07344927,222.72,222.49,0.07312086]
[1693416374722,0.07344927,222.72,222.5,0.82128588]
[1693416375023,0.07344927,222.73,222.5,0.82128588]
[1693416376921,0.14689854,222.76,222.5,0.82128588]
[1693416376922,0.07344927,222.74,222.5,0.82128588]
[1693416377122,0.07344927,222.74,222.49,0.82128588]
[1693416377421,0.07344927,222.79,222.53,0.07312086]
[1693416377622,0.07344927,222.79,222.54,0.82128588]
[1693416378025,0.07344927,222.81,222.54,0.82128588]
[1693416378322,0.07344927,222.81,222.55,0.82128588]
[1693416378523,0.07344927,222.81,222.56,0.82128588]
[1693416378723,0.07344927,222.81,222.53,0.82128588]
[1693416378923,0.07344927,222.81,222.54,0.82128588]
[1693416379124,0.07344927,222.82,222.55,0.82128588]
[1693416379326,0.07344927,222.82,222.51,0.82128588]
[1693416379526,0.07344927,222.82,222.52,0.82128588]
[1693416379728,0.07344927,222.82,222.53,0.82128588]
[1693416380026,0.07344927,222.83,222.54,0.82128588]
[1693416380222,0.07344927,222.83,222.51,0.82128588]
[1693416380430,0.07344927,222.82,222.52,0.82128588]
[1693416380631,0.07344927,222.82,222.5,0.82128588]
[1693416380832,0.07344927,222.83,222.51,0.82128588]
[1693416381130,0.07344927,222.83,222.52,0.82128588]
[1693416381323,0.07344927,222.83,222.5,0.82128588]
[1693416381528,0.07344927,222.83,222.51,0.82128588]
[1693416381829,0.07344927,222.83,222.52,0.82128588]
[1693416382029,0.07344927,222.84,222.5,0.82128588]
[1693416382226,0.07344927,222.84,222.51,0.82128588]
[1693416382427,0.07344927,222.84,222.52,0.82128588]
[1693416382627,0.07344927,222.84,222.49,0.82128588]
[1693416382831,0.07344927,222.84,222.5,0.82128588]
[1693416383031,2.4483091,222.98,222.51,0.82128588]
[1693416383032,0.07344927,222.85,222.51,0.82128588]
[1693416383230,0.07344927,222.85,222.52,0.82128588]
[1693416383432,0.07344927,222.85,222.49,0.82128588]
[1693416383730,0.07344927,222.85,222.5,0.82128588]
[1693416383931,0.07344927,222.85,222.51,0.82128588]
[1693416384230,0.07344927,222.85,222.52,0.82128588]
[1693416384430,0.07344927,222.85,222.53,0.82128588]
[1693416384630,0.07344927,222.85,222.49,0.82128588]
[1693416384831,0.07344927,222.85,222.48,0.07312086]
[1693416384832,0.07344927,222.85,222.5,0.82128588]
[1693416385027,0.07344927,222.86,222.51,0.82128588]
[1693416385232,0.07344927,222.86,222.48,0.82128588]
[1693416385434,0.07344927,222.86,222.49,0.82128588]
[1693416385634,0.07344927,222.86,222.5,0.82128588]
[1693416385930,0.07344927,222.86,222.51,0.82128588]
[1693416386233,0.07344927,222.86,222.52,0.82128588]
[1693416386433,0.07344927,222.86,222.53,0.82128588]
[1693416386631,0.07344927,222.86,222.48,0.82128588]
[1693416386830,0.07344927,222.86,222.49,0.82128588]
[1693416387028,0.07344927,222.86,222.5,0.82128588]
[1693416387229,0.07344927,222.86,222.48,0.82128588]
[1693416387430,0.07344927,222.86,222.49,0.82128588]
[1693416387631,0.07344927,222.86,222.5,0.82128588]
[1693416387831,0.07344927,222.86,222.48,0.82128588]
[1693416388033,0.07344927,222.86,222.49,0.82128588]
[1693416388229,0.07344927,222.86,222.5,0.82128588]
[1693416388433,0.07344927,222.86,222.47,0.82128588]
[1693416388629,0.07344927,222.86,222.48,0.82128588]
[1693416388830,0.07344927,222.87,222.49,0.82128588]
[1693416389028,0.07344927,222.87,222.48,0.82128588]
[1693416389237,0.07344927,222.87,222.49,0.82128588]
[1693416389534,0.07344927,222.87,222.5,0.82128588]
[1693416389734,0.07344927,222.87,222.48,0.82128588]
[1693416389928,0.07344927,222.87,222.49,0.82128588]
[1693416390134,0.07344927,222.87,222.5,0.82128588]
[1693416390331,0.07344927,222.87,222.47,0.82128588]
[1693416390534,0.07344927,222.87,222.48,0.82128588]
[1693416390734,0.07344927,222.87,222.47,0.82128588]
[1693416390935,0.07344927,222.87,222.48,0.82128588]
[1693416391140,0.07344927,222.87,222.47,0.82128588]
[1693416391337,0.07344927,222.87,222.48,0.82128588]
[1693416391635,0.07344927,222.87,222.49,0.82128588]
[1693416391835,0.07344927,222.87,222.5,0.82128588]
[1693416392043,0.07344927,222.87,222.51,0.82128588]
[1693416392228,0.07344927,222.87,222.47,0.82128588]
[1693416392432,0.07344927,222.87,222.48,0.82128588]
[1693416392735,0.07344927,222.87,222.49,0.82128588]
[1693416392934,0.07344927,222.87,222.47,0.82128588]
[1693416393136,0.07344927,222.87,222.48,0.82128588]
[1693416393337,0.07344927,222.87,222.49,0.82128588]
[1693416393537,0.07344927,222.87,222.47,0.82128588]
[1693416393734,0.07344927,222.87,222.48,0.82128588]
[1693416393936,0.07344927,222.87,222.49,0.82128588]
[1693416394135,0.07344927,222.87,222.47,0.82128588]
[1693416394335,0.07344927,222.87,222.48,0.82128588]
[1693416394536,0.07344927,222.87,222.49,0.82128588]
[1693416394832,0.07344927,222.87,222.5,0.82128588]
[1693416395038,0.07344927,222.87,222.51,0.82128588]
[1693416395237,0.07344927,222.87,222.48,0.82128588]
[1693416395538,0.07344927,222.87,222.49,0.82128588]
[1693416395839,0.07344927,222.87,222.5,0.82128588]
[1693416396137,0.07344927,222.87,222.51,0.82128588]
[1693416396338,0.07344927,222.87,222.48,0.82128588]
[1693416396539,0.07344927,222.88,222.49,0.82128588]
[1693416396740,0.07344927,222.88,222.5,0.82128588]
[1693416396935,0.07344927,222.88,222.48,0.82128588]
[1693416397136,0.07344927,222.88,222.49,0.82128588]
[1693416397334,0.07344927,222.88,222.5,0.82128588]
[1693416397534,0.07344927,222.88,222.48,0.82128588]
[1693416397738,0.07344927,222.88,222.49,0.82128588]
[1693416397938,0.07344927,222.88,222.48,0.82128588]
[1693416398135,0.07344927,222.88,222.49,0.82128588]
[1693416398339,0.07344927,222.88,222.5,0.82128588]
[1693416398539,0.07344927,222.88,222.48,0.82128588]
[1693416398740,0.07344927,222.88,222.49,0.82128588]
[1693416399042,0.07344927,222.87,222.5,0.82128588]
[1693416399339,0.07344927,222.87,222.51,0.82128588]
[1693416399541,0.07344927,222.87,222.48,0.82128588]
[1693416399735,0.07344927,222.87,222.49,0.82128588]
[1693416399938,0.07344927,222.87,222.5,0.82128588]
[1693416400240,0.07344927,222.87,222.51,0.82128588]
[1693416400441,0.07344927,222.87,222.49,0.82128588]
[1693416400739,0.07344927,222.87,222.5,0.82128588]
[1693416400943,0.07344927,222.87,222.49,0.82128588]
[1693416401143,0.07344927,222.87,222.5,0.82128588]
[1693416401342,0.07344927,222.87,222.48,0.07312086]
[1693416401343,0.07344927,222.87,222.51,0.82128588]
[1693416401545,0.07344927,222.87,222.52,0.82128588]
[1693416401740,0.07344927,222.87,222.49,0.82128588]
[1693416401946,0.07344927,222.86,222.5,0.82128588]
[1693416402144,0.07344927,222.86,222.51,0.82128588]
[1693416402343,0.07344927,222.86,222.49,0.82128588]
[1693416402543,0.07344927,222.86,222.5,0.82128588]
[1693416402744,0.07344927,222.86,222.51,0.82128588]
[1693416403045,0.07344927,222.87,222.52,0.82128588]
[1693416403345,0.07344927,222.87,222.53,0.82128588]
[1693416403545,0.07344927,222.87,222.54,0.82128588]
[1693416403747,0.07344927,222.87,222.51,0.82128588]
[1693416403946,0.07344927,222.87,222.52,0.82128588]
[1693416404145,0.07344927,222.86,222.53,0.82128588]
[1693416404345,0.07344927,222.86,222.54,0.82128588]
[1693416404541,0.07344927,222.86,222.55,0.82128588]
[1693416404745,0.07344927,222.86,222.56,0.82128588]
[1693416404947,0.07344927,222.86,222.51,0.89440674]